[Event "Skol-SM 2021, grupp A"]
[Site "Helsingborg Arena, Mellersta Stenbocksgatan 14, Helsingborg, Sweden"]
[Date "2021.10.09"]
[Round "3.3"]
[White "Kochetkov, Maxim"]
[Black "Joensson, Oscar"]
[Result "0-1"]
[TimeControl "45 minutes + 10 seconds per move from move one."]
[WhiteFideId "1768565"]
[BlackFideId "1729977"]
[WhiteElo "1360"]
[BlackElo "1741"]

1. d4 {[%clk 00:45:19]} {[%emt 00:00:01]} Nf6 {[%clk 00:45:14]} {[%emt
00:00:06]} 2. Bf4 {[%clk 00:45:24]} {[%emt 00:00:05]} d5 {[%clk 00:44:58]}
{[%emt 00:00:25]} 3. e3 {[%clk 00:45:28]} {[%emt 00:00:07]} c5 {[%clk
00:44:44]} {[%emt 00:00:23]} 4. c3 {[%clk 00:45:29]} {[%emt 00:00:09]} Nc6
{[%clk 00:43:57]} {[%emt 00:00:56]} 5. Nd2 {[%clk 00:45:31]} {[%emt 00:00:09]}
Bf5 {[%clk 00:43:42]} {[%emt 00:00:24]} 6. Ngf3 {[%clk 00:44:52]} {[%emt
00:00:50]} e6 {[%clk 00:43:34]} {[%emt 00:00:18]} 7. Bb5 {[%clk 00:42:25]}
{[%emt 00:02:37]} a6 {[%clk 00:40:58]} {[%emt 00:02:45]} 8. Bxc6+ {[%clk
00:41:44]} {[%emt 00:00:51]} bxc6 {[%clk 00:41:05]} {[%emt 00:00:03]} 9. Qb3
{[%clk 00:36:27]} {[%emt 00:05:28]} Be7 {[%clk 00:34:29]} {[%emt 00:06:45]} 10.
Qb7 {[%clk 00:33:59]} {[%emt 00:02:38]} Qc8 {[%clk 00:34:26]} {[%emt 00:00:13]}
11. Qxc8+ {[%clk 00:31:01]} {[%emt 00:03:08]} Rxc8 {[%clk 00:34:34]} {[%emt
00:00:02]} 12. Nb3 {[%clk 00:26:38]} {[%emt 00:04:34]} c4 {[%clk 00:30:45]}
{[%emt 00:03:59]} 13. Nbd2 {[%clk 00:22:00]} {[%emt 00:04:48]} Nh5 {[%clk
00:27:06]} {[%emt 00:03:49]} 14. b3 {[%clk 00:19:44]} {[%emt 00:02:26]} Nxf4
{[%clk 00:23:18]} {[%emt 00:03:58]} 15. exf4 {[%clk 00:19:50]} {[%emt
00:00:04]} Ba3 {[%clk 00:23:20]} {[%emt 00:00:07]} 16. Ke2 {[%clk 00:13:53]}
{[%emt 00:06:07]} Bb2 {[%clk 00:21:16]} {[%emt 00:02:14]} 17. Rad1 {[%clk
00:12:47]} {[%emt 00:01:16]} Bc2 {[%clk 00:15:28]} {[%emt 00:05:58]} 18. Rde1
{[%clk 00:12:33]} {[%emt 00:00:24]} cxb3 {[%clk 00:14:42]} {[%emt 00:00:57]} 19.
Nxb3 {[%clk 00:11:14]} {[%emt 00:01:30]} Be4 {[%clk 00:11:24]} {[%emt
00:03:27]} 20. Kd2 {[%clk 00:09:12]} {[%emt 00:02:11]} Ba3 {[%clk 00:07:58]}
{[%emt 00:03:35]} 21. Re3 {[%clk 00:06:15]} {[%emt 00:03:07]} Ke7 {[%clk
00:05:15]} {[%emt 00:02:53]} 22. Rg1 {[%clk 00:04:00]} {[%emt 00:02:26]} c5
{[%clk 00:04:03]} {[%emt 00:01:22]} 23. Nxc5 {[%clk 00:03:15]} {[%emt
00:00:55]} Bxc5 {[%clk 00:04:11]} {[%emt 00:00:02]} 24. dxc5 {[%clk 00:03:23]}
{[%emt 00:00:01]} Rxc5 {[%clk 00:04:20]} {[%emt 00:00:01]} 25. Nd4 {[%clk
00:03:07]} {[%emt 00:00:26]} Rb8 {[%clk 00:03:37]} {[%emt 00:00:53]} 26. Nb3
{[%clk 00:02:40]} {[%emt 00:00:38]} Rc4 {[%clk 00:03:38]} {[%emt 00:00:09]} 27.
f3 {[%clk 00:01:22]} {[%emt 00:01:28]} Bg6 {[%clk 00:03:46]} {[%emt 00:00:02]}
28. g3 {[%clk 00:01:12]} {[%emt 00:00:20]} Ra4 {[%clk 00:03:53]} {[%emt
00:00:03]} 29. Ra1 {[%clk 00:01:02]} {[%emt 00:00:20]} Ra3 {[%clk 00:04:01]}
{[%emt 00:00:01]} 0-1

[Event "Skol-SM 2021, grupp A"]
[Site "Helsingborg Arena, Mellersta Stenbocksgatan 14, Helsingborg, Sweden"]
[Date "2021.10.09"]
[Round "4.5"]
[White "Skahlberg Bjerknes-Lima de Faria, Warg"]
[Black "Kochetkov, Maxim"]
[Result "1-0"]
[TimeControl "45 minutes + 10 seconds per move from move one."]
[WhiteFideId "1738100"]
[BlackFideId "1768565"]
[WhiteElo "1540"]
[BlackElo "1360"]

1. c4 {[%clk 00:45:19]} Nf6 {[%clk 00:45:19]} {[%emt 00:00:02]} 2. g3 {[%clk
00:45:26]} {[%emt 00:00:03]} g6 {[%clk 00:45:26]} {[%emt 00:00:02]} 3. Bg2
{[%clk 00:45:29]} {[%emt 00:00:07]} Bg7 {[%clk 00:45:19]} {[%emt 00:00:18]} 4.
Nf3 {[%clk 00:45:28]} {[%emt 00:00:11]} c6 {[%clk 00:45:01]} {[%emt 00:00:29]}
5. d3 {[%clk 00:44:42]} {[%emt 00:00:55]} d5 {[%clk 00:44:25]} {[%emt
00:00:46]} 6. Nbd2 {[%clk 00:44:21]} {[%emt 00:00:31]} O-O {[%clk 00:44:01]}
{[%emt 00:00:35]} 7. O-O {[%clk 00:43:27]} {[%emt 00:01:03]} Bf5 {[%clk
00:42:15]} {[%emt 00:01:56]} 8. Rb1 {[%clk 00:42:26]} {[%emt 00:01:12]} Qc8
{[%clk 00:38:17]} {[%emt 00:04:08]} 9. b4 {[%clk 00:40:33]} {[%emt 00:02:03]}
Bh3 {[%clk 00:36:10]} {[%emt 00:02:17]} 10. b5 {[%clk 00:38:41]} {[%emt
00:02:02]} Bxg2 {[%clk 00:34:48]} {[%emt 00:01:32]} 11. Kxg2 {[%clk 00:38:40]}
{[%emt 00:00:11]} Nbd7 {[%clk 00:31:51]} {[%emt 00:03:07]} 12. bxc6 {[%clk
00:35:27]} {[%emt 00:03:23]} Qxc6 {[%clk 00:29:34]} {[%emt 00:02:27]} 13. Ba3
{[%clk 00:33:00]} {[%emt 00:02:37]} Rfe8 {[%clk 00:28:04]} {[%emt 00:01:40]} 14.
Qb3 {[%clk 00:31:00]} {[%emt 00:02:09]} b6 {[%clk 00:22:57]} {[%emt 00:05:18]}
15. Kg1 {[%clk 00:28:26]} {[%emt 00:02:44]} Nc5 {[%clk 00:19:25]} {[%emt
00:03:43]} 16. cxd5 {[%clk 00:23:53]} {[%emt 00:04:43]} Nxb3 {[%clk 00:14:55]}
{[%emt 00:04:40]} 17. dxc6 {[%clk 00:23:37]} {[%emt 00:00:27]} Na5 {[%clk
00:11:14]} {[%emt 00:03:51]} 18. Rfc1 {[%clk 00:18:44]} {[%emt 00:05:02]} Rac8
{[%clk 00:10:07]} {[%emt 00:01:18]} 19. Nd4 {[%clk 00:16:48]} {[%emt 00:02:06]}
Nd5 {[%clk 00:09:10]} {[%emt 00:01:08]} 20. N2f3 {[%clk 00:15:20]} {[%emt
00:01:38]} Nc7 {[%clk 00:04:25]} {[%emt 00:04:55]} 21. Nb3 {[%clk 00:09:07]}
{[%emt 00:06:23]} Nb5 {[%clk 00:01:36]} {[%emt 00:02:58]} 22. Bb2 {[%clk
00:06:07]} {[%emt 00:03:10]} Nxc6 {[%clk 00:01:28]} {[%emt 00:00:18]} 23. Bxg7
{[%clk 00:03:37]} {[%emt 00:02:40]} Kxg7 {[%clk 00:01:37]} {[%emt 00:00:02]} 24.
a4 {[%clk 00:03:31]} {[%emt 00:00:17]} Nd6 {[%clk 00:01:28]} {[%emt 00:00:17]}
25. Rc3 {[%clk 00:02:52]} {[%emt 00:00:50]} Nd4 {[%clk 00:00:48]} {[%emt
00:00:51]} 26. Rxc8 {[%clk 00:02:05]} {[%emt 00:00:57]} Nxf3+ {[%clk 00:00:56]}
{[%emt 00:00:02]} 27. exf3 {[%clk 00:02:12]} {[%emt 00:00:02]} Rxc8 {[%clk
00:01:04]} {[%emt 00:00:03]} 28. Nd4 {[%clk 00:01:23]} {[%emt 00:00:59]} Rc3
{[%clk 00:01:04]} {[%emt 00:00:09]} 29. Rb3 {[%clk 00:00:57]} {[%emt 00:00:37]}
Rc1+ {[%clk 00:00:32]} {[%emt 00:00:42]} 30. Kg2 {[%clk 00:01:06]} Ra1 {[%clk
00:00:37]} {[%emt 00:00:04]} 31. Nc6 {[%clk 00:00:38]} {[%emt 00:00:39]} Rxa4
{[%clk 00:00:41]} {[%emt 00:00:06]} 32. Nxe7 {[%clk 00:00:45]} {[%emt
00:00:03]} Kf6 {[%clk 00:00:26]} {[%emt 00:00:25]} 33. Nd5+ {[%clk 00:00:40]}
{[%emt 00:00:16]} Ke6 {[%clk 00:00:29]} {[%emt 00:00:06]} 34. Nc3 {[%clk
00:00:32]} {[%emt 00:00:18]} Rd4 {[%clk 00:00:28]} {[%emt 00:00:08]} 35. Ne2
{[%clk 00:00:30]} {[%emt 00:00:15]} Rd5 {[%clk 00:00:28]} {[%emt 00:00:10]} 36.
Nf4+ {[%clk 00:00:38]} {[%emt 00:00:02]} Ke5 {[%clk 00:00:32]} {[%emt
00:00:06]} 37. Nxd5 {[%clk 00:00:47]} {[%emt 00:00:02]} Kxd5 {[%clk 00:00:41]}
{[%emt 00:00:01]} 38. Rb4 {[%clk 00:00:37]} {[%emt 00:00:20]} Kc5 {[%clk
00:00:28]} {[%emt 00:00:23]} 39. Ra4 {[%clk 00:00:40]} {[%emt 00:00:07]} a5
{[%clk 00:00:32]} {[%emt 00:00:05]} 40. Kf1 {[%clk 00:00:42]} {[%emt 00:00:09]}
Nf5 {[%clk 00:00:19]} {[%emt 00:00:24]} 41. Ke2 {[%clk 00:00:34]} {[%emt
00:00:18]} Kb5 {[%clk 00:00:18]} {[%emt 00:00:11]} 42. Rc4 {[%emt 00:00:19]} a4
{[%clk 00:00:16]} {[%emt 00:00:10]} 43. Kd2 {[%clk 00:00:33]} {[%emt 00:00:03]}
Ka5 {[%clk 00:00:18]} {[%emt 00:00:09]} 44. Kc3 {[%clk 00:00:30]} {[%emt
00:00:13]} Nd6 {[%clk 00:00:14]} {[%emt 00:00:14]} 45. Rc6 {[%clk 00:00:33]}
{[%emt 00:00:06]} Nb5+ {[%clk 00:00:12]} {[%emt 00:00:13]} 46. Kc4 {[%clk
00:00:25]} {[%emt 00:00:17]} Na3+ {[%clk 00:00:15]} {[%emt 00:00:08]} 47. Kc3
{[%clk 00:00:18]} {[%emt 00:00:16]} b5 {[%clk 00:00:18]} {[%emt 00:00:07]} 48.
Rc5 {[%clk 00:00:17]} {[%emt 00:00:11]} Nb1+ {[%clk 00:00:23]} {[%emt
00:00:06]} 49. Kc2 {[%clk 00:00:23]} {[%emt 00:00:04]} Na3+ {[%clk 00:00:18]}
{[%emt 00:00:15]} 50. Kb2 {[%clk 00:00:27]} {[%emt 00:00:05]} Kb4 {[%clk
00:00:23]} {[%emt 00:00:06]} 51. Re5 {[%clk 00:00:19]} {[%emt 00:00:18]} f6
{[%clk 00:00:21]} {[%emt 00:00:12]} 52. Re4+ {[%clk 00:00:27]} {[%emt
00:00:02]} Nc4+ {[%clk 00:00:21]} {[%emt 00:00:11]} 53. dxc4 {[%clk 00:00:34]}
{[%emt 00:00:02]} bxc4 {[%clk 00:00:30]} {[%emt 00:00:01]} 54. Re7 {[%clk
00:00:21]} {[%emt 00:00:22]} 1-0

[Event "Skol-SM 2021, grupp A"]
[Site "Helsingborg Arena, Mellersta Stenbocksgatan 14, Helsingborg, Sweden"]
[Date "2021.10.09"]
[Round "5.6"]
[White "Sigurdsson, Anton"]
[Black "Kochetkov, Maxim"]
[Result "0-1"]
[TimeControl "45 minutes + 10 seconds per move from move one."]
[WhiteFideId "1764527"]
[BlackFideId "1768565"]
[WhiteElo "1183"]
[BlackElo "1360"]

1. e4 {[%clk 00:45:17]} {[%emt 00:00:02]} c5 {[%clk 00:45:19]} {[%emt
00:00:02]} 2. Nf3 {[%clk 00:45:24]} {[%emt 00:00:02]} d6 {[%clk 00:45:21]}
{[%emt 00:00:09]} 3. d4 {[%clk 00:45:27]} {[%emt 00:00:07]} cxd4 {[%clk
00:45:29]} {[%emt 00:00:03]} 4. Nxd4 {[%clk 00:45:32]} {[%emt 00:00:04]} Nf6
{[%clk 00:45:32]} {[%emt 00:00:08]} 5. Nc3 {[%clk 00:45:32]} {[%emt 00:00:09]}
a6 {[%clk 00:45:40]} {[%emt 00:00:03]} 6. f3 {[%clk 00:45:34]} {[%emt
00:00:07]} e5 {[%clk 00:45:42]} {[%emt 00:00:08]} 7. Nb3 {[%clk 00:45:35]}
{[%emt 00:00:09]} Be6 {[%clk 00:44:18]} {[%emt 00:01:35]} 8. Be3 {[%clk
00:45:14]} {[%emt 00:00:30]} Be7 {[%clk 00:44:10]} {[%emt 00:00:19]} 9. Qd2
{[%clk 00:45:16]} {[%emt 00:00:07]} O-O {[%clk 00:43:50]} {[%emt 00:00:30]} 10.
O-O-O {[%clk 00:45:17]} {[%emt 00:00:08]} Nbd7 {[%clk 00:43:34]} {[%emt
00:00:27]} 11. g4 {[%clk 00:45:06]} {[%emt 00:00:21]} b5 {[%clk 00:43:25]}
{[%emt 00:00:19]} 12. h4 {[%clk 00:43:55]} {[%emt 00:01:21]} b4 {[%clk
00:40:39]} {[%emt 00:02:57]} 13. Nd5 {[%clk 00:39:10]} {[%emt 00:04:54]} Bxd5
{[%clk 00:33:44]} {[%emt 00:07:06]} 14. exd5 {[%clk 00:39:00]} {[%emt
00:00:20]} a5 {[%clk 00:32:32]} {[%emt 00:01:23]} 15. Kb1 {[%clk 00:36:06]}
{[%emt 00:03:03]} Qc7 {[%clk 00:28:06]} {[%emt 00:04:36]} 16. h5 {[%clk
00:33:55]} {[%emt 00:02:20]} Rfc8 {[%clk 00:23:18]} {[%emt 00:04:59]} 17. g5
{[%clk 00:32:08]} {[%emt 00:01:56]} Nxd5 {[%clk 00:08:45]} {[%emt 00:14:44]} 18.
Bd3 {[%clk 00:27:24]} {[%emt 00:04:54]} Nxe3 {[%clk 00:08:18]} {[%emt
00:00:37]} 19. Qxe3 {[%clk 00:27:14]} {[%emt 00:00:19]} Nc5 {[%clk 00:07:32]}
{[%emt 00:00:57]} 20. Nxc5 {[%clk 00:20:20]} {[%emt 00:07:04]} Qxc5 {[%clk
00:07:09]} {[%emt 00:00:34]} 21. Qe4 {[%clk 00:19:13]} {[%emt 00:01:17]} Bxg5
{[%clk 00:02:14]} {[%emt 00:05:05]} 22. Qxh7+ {[%clk 00:17:46]} {[%emt
00:01:36]} Kf8 {[%clk 00:02:22]} {[%emt 00:00:02]} 23. Qh8+ {[%clk 00:16:25]}
{[%emt 00:01:30]} Ke7 {[%clk 00:02:31]} {[%emt 00:00:01]} 24. Qxg7 {[%clk
00:16:32]} {[%emt 00:00:02]} Bf6 {[%clk 00:01:47]} {[%emt 00:00:54]} 25. Qg4
{[%clk 00:14:46]} {[%emt 00:01:55]} a4 {[%clk 00:01:39]} {[%emt 00:00:20]} 26.
Qg1 {[%clk 00:10:05]} {[%emt 00:04:50]} Qa5 {[%clk 00:01:19]} {[%emt 00:00:31]}
27. Be4 {[%clk 00:08:52]} {[%emt 00:01:23]} b3 {[%clk 00:00:38]} {[%emt
00:00:51]} 28. cxb3 {[%clk 00:07:36]} {[%emt 00:01:26]} axb3 {[%clk 00:00:23]}
{[%emt 00:00:26]} 29. a3 {[%clk 00:07:29]} {[%emt 00:00:16]} Rab8 {[%clk
00:00:22]} {[%emt 00:00:11]} 30. Rd5 {[%clk 00:07:04]} {[%emt 00:00:34]} Qc7
{[%clk 00:00:14]} {[%emt 00:00:19]} 31. Qe3 {[%clk 00:06:17]} {[%emt 00:00:57]}
Qc4 {[%clk 00:00:14]} {[%emt 00:00:10]} 32. Rhd1 {[%clk 00:05:13]} {[%emt
00:01:13]} Rc6 {[%clk 00:00:11]} {[%emt 00:00:14]} 33. Bf5 {[%clk 00:03:52]}
{[%emt 00:01:29]} Rg8 {[%clk 00:00:12]} {[%emt 00:00:10]} 34. Be4 {[%clk
00:03:05]} {[%emt 00:00:57]} Bg5 {[%clk 00:00:19]} {[%emt 00:00:04]} 35. Qe1
{[%clk 00:02:14]} {[%emt 00:01:01]} Rgc8 {[%clk 00:00:19]} {[%emt 00:00:10]} 36.
R5d2 {[%clk 00:00:28]} {[%emt 00:01:55]} Bxd2 {[%clk 00:00:25]} {[%emt
00:00:05]} 37. Qxd2 {[%clk 00:00:36]} {[%emt 00:00:01]} d5 {[%clk 00:00:12]}
{[%emt 00:00:23]} 38. Bd3 {[%clk 00:00:23]} {[%emt 00:00:23]} Qd4 {[%clk
00:00:15]} {[%emt 00:00:07]} 39. Qg5+ {[%clk 00:00:29]} {[%emt 00:00:04]} Rf6
{[%clk 00:00:16]} {[%emt 00:00:10]} 40. Be2 {[%clk 00:00:31]} {[%emt 00:00:08]}
Qf4 {[%clk 00:00:19]} {[%emt 00:00:07]} 41. Qxf4 {[%clk 00:00:37]} {[%emt
00:00:04]} Rxf4 {[%clk 00:00:27]} {[%emt 00:00:03]} 42. Rxd5 {[%clk 00:00:41]}
{[%emt 00:00:05]} f6 {[%clk 00:00:21]} {[%emt 00:00:16]} 43. Rd3 {[%clk
00:00:47]} {[%emt 00:00:05]} Rb8 {[%clk 00:00:26]} {[%emt 00:00:05]} 44. Kc1
{[%clk 00:00:54]} {[%emt 00:00:02]} Rh4 {[%clk 00:00:31]} {[%emt 00:00:04]} 45.
f4 {[%clk 00:00:46]} {[%emt 00:00:18]} Rxf4 {[%clk 00:00:37]} {[%emt 00:00:05]}
46. Kd2 {[%clk 00:00:52]} {[%emt 00:00:02]} Rd8 {[%clk 00:00:30]} {[%emt
00:00:18]} 47. Kc3 {[%clk 00:00:53]} {[%emt 00:00:09]} Rxd3+ {[%clk 00:00:29]}
{[%emt 00:00:10]} 48. Bxd3 {[%emt 00:00:02]} Rf3 {[%clk 00:00:32]} {[%emt
00:00:06]} 49. Kc4 {[%clk 00:01:01]} {[%emt 00:00:12]} Rh3 {[%clk 00:00:36]}
{[%emt 00:00:06]} 50. Bg6 {[%clk 00:01:06]} {[%emt 00:00:05]} Kd6 {[%clk
00:00:33]} {[%emt 00:00:13]} 51. Bf7 {[%clk 00:01:03]} {[%emt 00:00:11]} f5
{[%clk 00:00:27]} {[%emt 00:00:18]} 52. Kb4 {[%clk 00:01:10]} {[%emt 00:00:03]}
f4 {[%clk 00:00:29]} {[%emt 00:00:08]} 53. Bxb3 {[%clk 00:01:17]} {[%emt
00:00:03]} Rxh5 {[%clk 00:00:28]} {[%emt 00:00:11]} 54. Bc4 {[%clk 00:01:15]}
{[%emt 00:00:11]} f3 {[%clk 00:00:26]} {[%emt 00:00:13]} 55. Kc3 {[%clk
00:01:20]} {[%emt 00:00:04]} f2 {[%clk 00:00:28]} {[%emt 00:00:08]} 56. Bf1
{[%clk 00:00:47]} {[%emt 00:00:44]} Rh1 {[%clk 00:00:34]} {[%emt 00:00:04]} 57.
Bg2 {[%clk 00:00:53]} {[%emt 00:00:04]} f1=Q {[%clk 00:00:41]} {[%emt
00:00:03]} 58. Bxf1 {[%clk 00:01:01]} {[%emt 00:00:01]} Rxf1 {[%clk 00:00:49]}
{[%emt 00:00:02]} 59. b4 {[%clk 00:01:10]} {[%emt 00:00:02]} 0-1

[Event "Skol-SM 2021, grupp A"]
[Site "Helsingborg Arena, Mellersta Stenbocksgatan 14, Helsingborg, Sweden"]
[Date "2021.10.09"]
[Round "6.5"]
[White "Kochetkov, Maxim"]
[Black "Kayyali, Isam"]
[Result "1/2-1/2"]
[TimeControl "45 minutes + 10 seconds per move from move one."]
[WhiteFideId "1768565"]
[BlackFideId "1761706"]
[WhiteElo "1360"]
[BlackElo "1603"]

1. d4 {[%clk 00:45:19]} Nf6 {[%clk 00:45:16]} {[%emt 00:00:04]} 2. Bf4 {[%clk
00:45:25]} {[%emt 00:00:04]} e6 {[%clk 00:45:25]} {[%emt 00:00:01]} 3. e3
{[%clk 00:45:28]} {[%emt 00:00:07]} d5 {[%clk 00:45:33]} {[%emt 00:00:01]} 4.
Nd2 {[%clk 00:45:21]} {[%emt 00:00:17]} Bd6 {[%clk 00:45:41]} {[%emt 00:00:02]}
5. Bg3 {[%clk 00:44:43]} {[%emt 00:00:48]} O-O {[%clk 00:45:39]} {[%emt
00:00:12]} 6. Bd3 {[%clk 00:44:38]} {[%emt 00:00:16]} c5 {[%clk 00:45:45]}
{[%emt 00:00:04]} 7. c3 {[%clk 00:44:38]} {[%emt 00:00:10]} Nc6 {[%clk
00:45:52]} {[%emt 00:00:03]} 8. Ngf3 {[%clk 00:44:30]} {[%emt 00:00:18]} Ne7
{[%clk 00:45:49]} {[%emt 00:00:13]} 9. Ne5 {[%clk 00:42:07]} {[%emt 00:02:33]}
Nf5 {[%clk 00:45:37]} {[%emt 00:00:22]} 10. Ndf3 {[%clk 00:38:31]} {[%emt
00:03:46]} Qc7 {[%clk 00:45:15]} {[%emt 00:00:32]} 11. O-O {[%clk 00:33:31]}
{[%emt 00:05:10]} Nxg3 {[%clk 00:45:04]} {[%emt 00:00:21]} 12. hxg3 {[%clk
00:33:35]} {[%emt 00:00:06]} Nd7 {[%clk 00:44:41]} {[%emt 00:00:33]} 13. Nxd7
{[%clk 00:32:07]} {[%emt 00:01:38]} Bxd7 {[%clk 00:44:42]} {[%emt 00:00:08]} 14.
Rc1 {[%clk 00:27:49]} {[%emt 00:04:28]} c4 {[%clk 00:41:25]} {[%emt 00:03:28]}
15. Bb1 {[%clk 00:27:35]} {[%emt 00:00:23]} f5 {[%clk 00:41:15]} {[%emt
00:00:20]} 16. Ne1 {[%clk 00:22:29]} {[%emt 00:05:17]} Rf6 {[%clk 00:40:21]}
{[%emt 00:01:03]} 17. f4 {[%clk 00:21:32]} {[%emt 00:01:06]} Rg6 {[%clk
00:36:02]} {[%emt 00:04:29]} 18. Kf2 {[%clk 00:20:59]} {[%emt 00:00:44]} Rh6
{[%clk 00:35:39]} {[%emt 00:00:33]} 19. Nf3 {[%clk 00:20:38]} {[%emt 00:00:31]}
Be8 {[%clk 00:30:46]} {[%emt 00:05:03]} 20. Rh1 {[%clk 00:20:07]} {[%emt
00:00:41]} Bh5 {[%clk 00:28:19]} {[%emt 00:02:37]} 21. Qc2 {[%clk 00:17:59]}
{[%emt 00:02:18]} Bxf3 {[%clk 00:28:09]} {[%emt 00:00:19]} 22. gxf3 {[%clk
00:17:25]} {[%emt 00:00:44]} Rxh1 {[%clk 00:27:16]} {[%emt 00:01:04]} 23. Rxh1
{[%clk 00:17:33]} {[%emt 00:00:02]} b5 {[%clk 00:26:44]} {[%emt 00:00:42]} 24.
g4 {[%clk 00:15:43]} {[%emt 00:02:00]} g6 {[%emt 00:02:35]} 25. a3 {[%clk
00:05:37]} {[%emt 00:09:23]} a5 {[%clk 00:21:34]} {[%emt 00:03:49]} 26. g5
{[%clk 00:03:49]} {[%emt 00:01:57]} b4 {[%clk 00:20:56]} {[%emt 00:00:48]} 27.
Qa4 {[%clk 00:01:36]} {[%emt 00:02:23]} bxc3 {[%clk 00:19:55]} {[%emt
00:01:11]} 28. bxc3 {[%clk 00:01:24]} {[%emt 00:00:23]} Rb8 {[%clk 00:20:03]}
{[%emt 00:00:01]} 29. Bc2 {[%clk 00:01:18]} {[%emt 00:00:16]} Bf8 {[%clk
00:12:35]} {[%emt 00:07:38]} 30. Rb1 {[%clk 00:01:01]} {[%emt 00:00:28]} Rxb1
{[%clk 00:12:41]} {[%emt 00:00:04]} 31. Bxb1 {[%clk 00:01:09]} {[%emt
00:00:01]} Qb6 {[%clk 00:12:40]} {[%emt 00:00:11]} 32. Bc2 {[%clk 00:01:00]}
{[%emt 00:00:19]} Kf7 {[%clk 00:12:26]} {[%emt 00:00:24]} 33. Ke2 {[%clk
00:00:58]} {[%emt 00:00:12]} Qb2 {[%clk 00:12:13]} {[%emt 00:00:22]} 34. Kd2
{[%clk 00:00:15]} {[%emt 00:00:53]} Bxa3 {[%clk 00:12:21]} {[%emt 00:00:03]} 35.
Qd7+ {[%clk 00:00:17]} {[%emt 00:00:08]} Be7 {[%clk 00:12:29]} {[%emt
00:00:01]} 36. Qa4 {[%clk 00:00:18]} {[%emt 00:00:09]} Qb6 {[%clk 00:11:53]}
{[%emt 00:00:46]} 37. Qd7 {[%clk 00:00:19]} {[%emt 00:00:08]} Qa6 {[%clk
00:11:21]} {[%emt 00:00:42]} 38. Ba4 {[%clk 00:00:18]} {[%emt 00:00:11]} Qa8
{[%clk 00:11:08]} {[%emt 00:00:23]} 39. Qc6 {[%clk 00:00:21]} {[%emt 00:00:07]}
Qxc6 {[%clk 00:10:47]} {[%emt 00:00:32]} 40. Bxc6 {[%clk 00:00:30]} {[%emt
00:00:02]} Bf8 {[%clk 00:10:19]} {[%emt 00:00:38]} 41. Kc2 {[%clk 00:00:32]}
{[%emt 00:00:08]} h6 {[%clk 00:10:24]} {[%emt 00:00:05]} 42. gxh6 {[%clk
00:00:23]} {[%emt 00:00:19]} Bxh6 {[%clk 00:10:33]} {[%emt 00:00:01]} 43. Kd2
{[%clk 00:00:24]} {[%emt 00:00:09]} Kf6 {[%clk 00:10:20]} {[%emt 00:00:22]} 44.
Bd7 {[%clk 00:00:27]} {[%emt 00:00:06]} Bf8 {[%clk 00:06:42]} {[%emt 00:03:49]}
45. Kc2 {[%clk 00:00:29]} {[%emt 00:00:08]} Ba3 {[%clk 00:06:46]} {[%emt
00:00:07]} 46. Kb1 {[%clk 00:00:26]} {[%emt 00:00:05]} Ke7 {[%clk 00:06:10]}
{[%emt 00:00:54]} 47. Ba4 {[%clk 00:00:32]} {[%emt 00:00:04]} Bd6 {[%clk
00:05:29]} {[%emt 00:00:51]} 48. Kc2 {[%clk 00:00:33]} {[%emt 00:00:10]} g5
{[%clk 00:05:39]} 49. fxg5 {[%clk 00:00:26]} {[%emt 00:00:16]} f4 {[%clk
00:05:23]} {[%emt 00:00:25]} 50. exf4 {[%clk 00:00:29]} {[%emt 00:00:08]} Bxf4
{[%clk 00:05:32]} {[%emt 00:00:01]} 51. g6 {[%clk 00:00:35]} {[%emt 00:00:03]}
Bh6 {[%clk 00:05:00]} {[%emt 00:00:41]} 52. Bb5 {[%clk 00:00:34]} {[%emt
00:00:10]} Kf6 {[%clk 00:04:51]} {[%emt 00:00:21]} 53. Bd7 {[%clk 00:00:41]}
{[%emt 00:00:03]} e5 {[%clk 00:04:52]} {[%emt 00:00:09]} 54. Kd1 {[%clk
00:00:12]} {[%emt 00:00:39]} exd4 {[%clk 00:04:53]} {[%emt 00:00:09]} 55. cxd4
{[%clk 00:00:20]} {[%emt 00:00:02]} Be3 {[%clk 00:04:59]} {[%emt 00:00:04]} 56.
Bc6 {[%clk 00:00:22]} {[%emt 00:00:08]} Bxd4 {[%clk 00:04:42]} {[%emt
00:00:28]} 57. Bxd5 {[%clk 00:00:29]} {[%emt 00:00:03]} c3 {[%clk 00:04:01]}
{[%emt 00:00:50]} 58. Be4 {[%clk 00:00:33]} {[%emt 00:00:05]} a4 {[%clk
00:03:59]} {[%emt 00:00:12]} 59. Kc2 {[%clk 00:00:39]} {[%emt 00:00:04]} Ke5
{[%emt 00:01:00]} 1/2-1/2